fUST/lending_fUST_20260625
["ID","MTS","AMOUNT","RATE_DAILY","PERIOD"]
[426371498,1782329440000,-500.0,0.00028712,11]
[426371499,1782329440000,-500.0,0.00028712,11]
[426371493,1782329440000,-500.0,0.00028712,11]
[426371501,1782329440000,-500.0,0.00028712,11]
[426371505,1782329440000,-333.6,0.00028712,11]
[426371497,1782329440000,-500.0,0.00028712,11]
[426371504,1782329440000,-500.0,0.00028712,11]
[426371491,1782329440000,-500.0,0.00028712,11]
[426371503,1782329440000,-500.0,0.00028712,11]
[426371502,1782329440000,-500.0,0.00028712,11]
[426371500,1782329440000,-500.0,0.00028712,11]
[426371558,1782329441000,-1000.0,0.00030136,2]
[426371568,1782329441000,-1000.0,0.00030136,2]
[426371570,1782329441000,-1000.0,0.00030136,2]
[426371569,1782329441000,-1000.0,0.00030136,2]
[426371564,1782329441000,-1000.0,0.00030136,2]
[426371567,1782329441000,-1000.0,0.00030136,2]
[426371563,1782329441000,-1000.0,0.00030136,2]
[426371565,1782329441000,-1000.0,0.00030136,2]
[426371562,1782329441000,-1000.0,0.00030136,2]
[426371560,1782329441000,-1000.0,0.00030136,2]
[426371559,1782329441000,-1000.0,0.00030136,2]
[426371572,1782329441000,-151.70214617,0.00030198,4]
[426371566,1782329441000,-1000.0,0.00030136,2]
[426371561,1782329441000,-1000.0,0.00030136,2]
[426371576,1782329441000,-151.70214617,0.0003069,8]
[426371573,1782329441000,-151.0,0.00030333,6]
[426371579,1782329441000,-159.0,0.00031066,10]
[426371575,1782329441000,-158.0,0.00030629,120]
[426371574,1782329441000,-151.70214617,0.00030383,6]
[426371577,1782329441000,-239.05241256,0.000309,120]
[426371578,1782329441000,-191.8703445,0.000309,120]
[426371580,1782329441000,-151.70214617,0.0003112,9]
[426371582,1782329441000,-151.70214617,0.00031673,11]
[426371581,1782329441000,-158.0,0.00031629,120]
[426371584,1782329441000,-1000.0,0.00032,120]
[426371583,1782329441000,-239.05241256,0.000318,120]
[426371587,1782329441000,-239.05241256,0.000328,120]
[426371555,1782329441000,-1000.0,0.00030136,2]
[426371571,1782329441000,-151.70214617,0.00030137,2]
[426371557,1782329441000,-1000.0,0.00030136,2]
[426371537,1782329441000,-151.49,0.00029,2]
[426371552,1782329441000,-1000.0,0.00030136,2]
[426371586,1782329441000,-158.29,0.00032629,120]
[426371525,1782329441000,-151.49,0.00029,2]
[426371526,1782329441000,-151.49,0.00029,2]
[426371527,1782329441000,-151.49,0.00029,2]
[426371528,1782329441000,-151.49,0.00029,2]
[426371530,1782329441000,-151.49,0.00029,2]
[426371529,1782329441000,-151.49,0.00029,2]
[426371532,1782329441000,-151.49,0.00029,2]
[426371531,1782329441000,-151.49,0.00029,2]
[426371533,1782329441000,-151.49,0.00029,2]
[426371534,1782329441000,-151.49,0.00029,2]
[426371536,1782329441000,-151.49,0.00029,2]
[426371535,1782329441000,-151.49,0.00029,2]
[426371556,1782329441000,-1000.0,0.00030136,2]
[426371538,1782329441000,-151.49,0.00029,2]
[426371539,1782329441000,-151.49,0.00029,2]
[426371541,1782329441000,-151.49,0.00029,2]
[426371543,1782329441000,-151.49,0.00029,2]
[426371542,1782329441000,-151.49,0.00029,2]
[426371544,1782329441000,-151.49,0.00029,2]
[426371545,1782329441000,-151.49,0.00029,2]
[426371546,1782329441000,-500.0,0.00029248,6]
[426371547,1782329441000,-300.17652537,0.00029279,2]
[426371548,1782329441000,-1000.0,0.00030136,2]
[426371551,1782329441000,-1000.0,0.00030136,2]
[426371550,1782329441000,-1000.0,0.00030136,2]
[426371549,1782329441000,-1000.0,0.00030136,2]
[426371554,1782329441000,-1000.0,0.00030136,2]
[426371540,1782329441000,-151.49,0.00029,2]
[426371592,1782329441000,-1000.0,0.00034,120]
[426371553,1782329441000,-1000.0,0.00030136,2]
[426371593,1782329441000,-151.70214617,0.00034069,17]
[426371627,1782329441000,-173.92346581,0.00035478,2]
[426371626,1782329441000,-375.33969276,0.00035478,2]
[426371647,1782329441000,-1187.67441826,0.00036626,2]
[426371629,1782329441000,-170.95601543,0.00035478,2]
[426371624,1782329441000,-611.01136907,0.00035478,2]
[426371623,1782329441000,-153.21775856,0.00035478,2]
[426371628,1782329441000,-368.82574712,0.00035478,2]
[426371630,1782329441000,-791.78294551,0.00035549,2]
[426371625,1782329441000,-176.59795811,0.00035478,2]
[426371632,1782329441000,-168.63735689,0.00035549,2]
[426371631,1782329441000,-410.90410068,0.00035549,2]
[426371633,1782329441000,-174.60693461,0.00035549,2]
[426371635,1782329441000,-156.37763049,0.00035549,2]
[426371641,1782329441000,-2000.0,0.00036,120]
[426371643,1782329441000,-388.687058,0.00036246,2]
[426371642,1782329441000,-847.04439344,0.00036146,8]
[426371634,1782329441000,-156.78609623,0.00035549,2]
[426371636,1782329441000,-150.70394265,0.00035549,2]
[426371637,1782329441000,-190.89912843,0.00035549,2]
[426371640,1782329441000,-989.72868189,0.0003598,2]
[426371638,1782329441000,-159.23361365,0.00035549,2]
[426371639,1782329441000,-150.42565763,0.00035549,2]
[426371644,1782329441000,-151.70214617,0.0003628,21]
[426371645,1782329441000,-500.0,0.00036608,120]
[426371648,1782329441000,-394.7494166,0.00037151,2]
[426371651,1782329441000,-347.1054745,0.00037151,2]
[426371650,1782329441000,-704.9096725,0.00037151,2]
[426371649,1782329441000,-451.1421904,0.00037151,2]
[426371591,1782329441000,-239.05241256,0.000338,120]
[426371621,1782329441000,-164.1597036,0.00035478,2]
[426371622,1782329441000,-160.4647181,0.00035478,2]
[426371646,1782329441000,-555.934,0.00036608,120]
[426371618,1782329441000,-152.67213132,0.00035478,2]
[426371620,1782329441000,-164.61610461,0.00035478,2]
[426371585,1782329441000,-151.70214617,0.00032349,13]
[426371589,1782329441000,-152.75284227,0.00033438,2]
[426371590,1782329441000,-197.94573638,0.00033504,2]
[426371595,1782329441000,-305.50568454,0.00034405,2]
[426371594,1782329441000,-1078.7988157,0.00034101,2]
[426371596,1782329441000,-395.89147275,0.00034473,2]
[426371603,1782329441000,-378.04311494,0.000351,30]
[426371604,1782329441000,-378.04311494,0.000351,30]
[426371605,1782329441000,-151.70214617,0.00035113,19]
[426371598,1782329441000,-388.687058,0.00034782,2]
[426371600,1782329441000,-205.45205034,0.00035049,2]
[426371599,1782329441000,-458.2585268,0.00035049,2]
[426371597,1782329441000,-154.06220763,0.00034485,2]
[426371588,1782329441000,-151.70214617,0.00033147,15]
[426371601,1782329441000,-187.66984638,0.00035049,2]
[426371602,1782329441000,-378.04311495,0.000351,30]
[426371614,1782329441000,-192.42862814,0.00035478,2]
[426371615,1782329441000,-156.32562581,0.00035478,2]
[426371616,1782329441000,-183.62993552,0.00035478,2]
[426371612,1782329441000,-1000.0,0.00035477,120]
[426371611,1782329441000,-1000.0,0.00035477,120]
[426371617,1782329441000,-338.31746252,0.00035478,2]
[426371609,1782329441000,-1000.0,0.00035477,120]
[426371608,1782329441000,-1000.0,0.00035477,120]
[426371613,1782329441000,-165.35450109,0.00035478,2]
[426371606,1782329441000,-593.83720913,0.00035119,2]
[426371619,1782329441000,-320.19766934,0.00035478,2]
[426371610,1782329441000,-1000.0,0.00035477,120]
[426371607,1782329441000,-308.12441525,0.00035131,2]
[426371682,1782329442000,-220.7713884,0.00039,120]
[426371680,1782329442000,-228.26,0.000388,120]
[426371683,1782329442000,-902.22847339,0.00039,120]
[426371686,1782329442000,-228.26,0.000393,120]
[426371685,1782329442000,-388.687058,0.00039174,2]
[426371681,1782329442000,-151.70214617,0.00038984,24]
[426371687,1782329442000,-228.26,0.000398,120]
[426371692,1782329442000,-182.49745448,0.000402,120]
[426371684,1782329442000,-182.49745448,0.00039,120]
[426371688,1782329442000,-152.31,0.00039849,14]
[426371689,1782329442000,-2000.0,0.0004,120]
[426371708,1782329442000,-589.16,0.00040343,2]
[426371691,1782329442000,-902.22847339,0.000402,120]
[426371695,1782329442000,-228.26,0.000403,120]
[426371694,1782329442000,-1000.0,0.00040299,120]
[426371697,1782329442000,-151.0,0.000403,11]
[426371699,1782329442000,-151.0,0.000403,16]
[426371707,1782329442000,-151.0,0.000403,20]
[426371696,1782329442000,-151.0,0.000403,14]
[426371698,1782329442000,-151.0,0.000403,17]
[426371709,1782329442000,-500.0,0.00040343,60]
[426371676,1782329442000,-500.0,0.00038178,60]
[426371706,1782329442000,-151.0,0.000403,19]
[426371693,1782329442000,-171.13182487,0.00040243,31]
[426371675,1782329442000,-500.0,0.00038178,60]
[426371663,1782329442000,-157.97,0.00037635,10]
[426371679,1782329442000,-228.26,0.000383,120]
[426371701,1782329442000,-151.0,0.000403,11]
[426371654,1782329442000,-291.98978694,0.00037151,2]
[426371653,1782329442000,-964.1818736,0.00037151,2]
[426371652,1782329442000,-617.07639911,0.00037151,2]
[426371656,1782329442000,-934.36731821,0.00037151,2]
[426371655,1782329442000,-525.58161649,0.00037151,2]
[426371657,1782329442000,-1459.9489347,0.00037151,2]
[426371658,1782329442000,-187.24495822,0.00037151,2]
[426371660,1782329442000,-334.36599683,0.00037151,2]
[426371659,1782329442000,-213.99423797,0.00037151,2]
[426371661,1782329442000,-263.526,0.00037156,120]
[426371674,1782329442000,-500.0,0.00038178,60]
[426371662,1782329442000,-151.70214617,0.00037571,23]
[426371664,1782329442000,-388.687058,0.0003771,2]
[426371666,1782329442000,-151.5,0.00038178,60]
[426371668,1782329442000,-500.0,0.00038178,60]
[426371667,1782329442000,-281.40534714,0.00038178,60]
[426371677,1782329442000,-500.0,0.00038178,60]
[426371670,1782329442000,-500.0,0.00038178,60]
[426371673,1782329442000,-156.00246752,0.00038178,60]
[426371669,1782329442000,-151.5,0.00038178,60]
[426371672,1782329442000,-500.0,0.00038178,60]
[426371678,1782329442000,-597.51468312,0.00038178,60]
[426371671,1782329442000,-151.5,0.00038178,60]
[426371665,1782329442000,-2000.0,0.00038,120]
[426371702,1782329442000,-151.0,0.000403,15]
[426371690,1782329442000,-220.7713884,0.000402,120]
[426371705,1782329442000,-151.0,0.000403,20]
[426371741,1782329442000,-589.16,0.00040443,2]
[426371739,1782329442000,-589.16,0.00040443,2]
[426371746,1782329442000,-589.16,0.00040443,2]
[426371742,1782329442000,-589.16,0.00040443,2]
[426371744,1782329442000,-589.16,0.00040443,2]
[426371743,1782329442000,-589.16,0.00040443,2]
[426371703,1782329442000,-151.0,0.000403,11]
[426371747,1782329442000,-589.16,0.00040443,2]
[426371748,1782329442000,-589.16,0.00040443,2]
[426371750,1782329442000,-589.16,0.00040443,2]
[426371758,1782329442000,-589.16,0.00040443,2]
[426371740,1782329442000,-589.16,0.00040443,2]
[426371759,1782329442000,-589.16,0.00040443,2]
[426371749,1782329442000,-589.16,0.00040443,2]
[426371752,1782329442000,-589.16,0.00040443,2]
[426371757,1782329442000,-589.16,0.00040443,2]
[426371756,1782329442000,-589.16,0.00040443,2]
[426371754,1782329442000,-589.16,0.00040443,2]
[426371755,1782329442000,-589.16,0.00040443,2]
[426371753,1782329442000,-589.16,0.00040443,2]
[426371760,1782329442000,-589.26462061,0.00040443,2]
[426371761,1782329442000,-345.90782304,0.00040443,60]
[426371762,1782329442000,-160.0,0.00040443,120]
[426371763,1782329442000,-944945.8917821,0.00040444,30]
[426371751,1782329442000,-589.16,0.00040443,2]
[426371738,1782329442000,-812.52,0.00040344,2]
[426371745,1782329442000,-589.16,0.00040443,2]
[426371737,1782329442000,-487.0,0.00040344,2]
[426371711,1782329442000,-500.0,0.00040343,60]
[426371710,1782329442000,-505.80633114,0.00040343,60]
[426371712,1782329442000,-558.1847319,0.00040343,60]
[426371736,1782329442000,-487.0,0.00040344,2]
[426371717,1782329442000,-1000.0,0.00040343,120]
[426371715,1782329442000,-1000.0,0.00040343,120]
[426371713,1782329442000,-500.0,0.00040343,60]
[426371716,1782329442000,-1000.0,0.00040343,120]
[426371719,1782329442000,-1000.0,0.00040343,120]
[426371721,1782329442000,-1000.0,0.00040343,120]
[426371718,1782329442000,-1000.0,0.00040343,120]
[426371720,1782329442000,-1000.0,0.00040343,120]
[426371714,1782329442000,-1000.0,0.00040343,120]
[426371722,1782329442000,-1000.0,0.00040343,120]
[426371724,1782329442000,-487.0,0.00040344,2]
[426371726,1782329442000,-487.0,0.00040344,2]
[426371731,1782329442000,-487.0,0.00040344,2]
[426371725,1782329442000,-487.0,0.00040344,2]
[426371734,1782329442000,-487.0,0.00040344,2]
[426371732,1782329442000,-487.0,0.00040344,2]
[426371730,1782329442000,-487.0,0.00040344,2]
[426371733,1782329442000,-487.0,0.00040344,2]
[426371727,1782329442000,-487.0,0.00040344,2]
[426371728,1782329442000,-487.0,0.00040344,2]
[426371735,1782329442000,-487.0,0.00040344,2]
[426371723,1782329442000,-9596.54720243,0.00040344,2]
[426371768,1782329443000,-2983.25000001,0.00040444,30]
[426371764,1782329443000,-123.91473047,0.00040444,30]
[426371778,1782329446000,-1193.19,0.00040444,30]
[426371779,1782329446000,-300.0,0.00040444,30]
[426371780,1782329517000,500.0,0.00028712,60]
[426371781,1782329518000,500.0,0.00028712,60]
[426371786,1782329519000,500.0,0.00028712,60]
[426371785,1782329519000,500.0,0.00028712,60]
[426371784,1782329519000,500.0,0.00028712,60]
[426371782,1782329519000,500.0,0.00028712,60]
[426371788,1782329520000,500.0,0.00028712,60]
[426371787,1782329520000,500.0,0.00028712,60]
[426371790,1782329614000,6847.8,0.0003013,30]
[426371792,1782329647000,500.0,0.00028712,60]
[426371791,1782329647000,500.0,0.00028712,60]
[426371795,1782329648000,500.0,0.00028712,60]
[426371794,1782329648000,500.0,0.00028712,60]
[426371793,1782329648000,500.0,0.00028712,60]
[426371796,1782329649000,500.0,0.00028712,60]
[426371798,1782329649000,567.35135186,0.00028712,60]
[426371797,1782329649000,500.0,0.00028712,60]
[426371799,1782329712000,160.0,0.00028712,30]
[426371800,1782329977000,300000.0,0.00030136,30]
[426372181,1782330492000,417.15472785,0.00028766,30]
[426372182,1782330508000,19999.96,0.0002,120]
[426372183,1782330546000,-475.52,0.000275,3]
[426372184,1782330546000,-160.0,0.00030134,2]
[426372186,1782330546000,-651.28900725,0.00031554,2]
[426372185,1782330546000,-151.0,0.00030137,6]
[426372187,1782330546000,-167.11,0.00032211,2]
[426372188,1782330546000,-211.00203597,0.00033516,2]
[426372189,1782330546000,-329.5626727,0.00033955,2]
[426372190,1782330546000,-422.00407193,0.00034485,2]
[426372191,1782330546000,-1000.0,0.00035049,2]
[426372193,1782330546000,-2073.61078389,0.00035099,2]
[426372196,1782330546000,-375.7336225,0.000351,30]
[426372194,1782330546000,-300.0,0.00035099,3]
[426372203,1782330546000,-203.83620155,0.00035561,2]
[426372207,1782330546000,-5413.33857765,0.00035632,2]
[426372206,1782330546000,-844.00814387,0.00035614,2]
[426372205,1782330546000,-410.83182265,0.00035614,2]
[426372195,1782330546000,-375.73362252,0.000351,30]
[426372204,1782330546000,-187.66984638,0.00035561,2]
[426372192,1782330546000,-280.0,0.00035049,2]
[426372201,1782330546000,-452.0,0.00035439,2]
[426372200,1782330546000,-205.41591133,0.00035182,2]
[426372197,1782330546000,-375.7336225,0.000351,30]
[426372199,1782330546000,-633.0061079,0.00035131,2]
[426372198,1782330546000,-192.92615739,0.00035131,2]
[426372202,1782330546000,-385.85231478,0.00035561,2]
[426372210,1782330549000,-624.41561157,0.00035978,2]
[426372211,1782330549000,-379.46164287,0.00035979,30]
[426372209,1782330549000,-500.0,0.00035978,60]
[426372208,1782330549000,-7092.45576945,0.00035632,2]
[426372212,1782330550000,-151.8314,0.00035979,30]
[426372215,1782330568000,-37.5182127,0.00036244,10]
[426372214,1782330568000,-468.70695713,0.00035979,30]
[426372290,1782330638000,-173.91,0.000388,120]
[426372293,1782330638000,-333.25327106,0.00039,120]
[426372307,1782330638000,-500.0,0.00040199,31]
[426372294,1782330638000,-173.91,0.000393,120]
[426372289,1782330638000,-173.91,0.000383,120]
[426372296,1782330638000,-173.91,0.000398,120]
[426372295,1782330638000,-187.237436,0.00039595,2]
[426372274,1782330638000,-123.0201363,0.00036244,10]
[426372302,1782330638000,-790.57476722,0.00040144,12]
[426372301,1782330638000,-171.68707134,0.000401,2]
[426372299,1782330638000,-1005.0,0.00039837,14]
[426372300,1782330638000,-1005.0,0.00039837,14]
[426372306,1782330638000,-500.0,0.00040199,31]
[426372308,1782330638000,-500.0,0.00040199,31]
[426372298,1782330638000,-200.0,0.00039837,14]
[426372297,1782330638000,-172.0,0.00039837,14]
[426372291,1782330638000,-175.12445427,0.00039,120]
[426372288,1782330638000,-300.0,0.00038,120]
[426372287,1782330638000,-1000.0,0.00037765,30]
[426372286,1782330638000,-187.237436,0.00037616,2]
[426372285,1782330638000,-160.0,0.00037151,2]
[426372280,1782330638000,-1000.0,0.0003715,2]
[426372283,1782330638000,-1000.0,0.00037151,2]
[426372282,1782330638000,-365.65299047,0.0003715,2]
[426372278,1782330638000,-1000.0,0.0003715,2]
[426372279,1782330638000,-1000.0,0.0003715,2]
[426372284,1782330638000,-290.0,0.00037151,2]
[426372281,1782330638000,-1000.0,0.0003715,2]
[426372277,1782330638000,-178.173,0.0003645,45]
[426372275,1782330638000,-5416.437081,0.00036446,120]
[426372276,1782330638000,-468.74586591,0.0003645,2]
[426372292,1782330638000,-618.06656818,0.00039,120]
[426372303,1782330638000,-500.0,0.00040199,31]
[426372321,1782330638000,-500.0,0.00040199,31]
[426372305,1782330638000,-288.96289384,0.00040199,31]
[426372327,1782330638000,-500.0,0.00040243,31]
[426372324,1782330638000,-500.0,0.00040199,31]
[426372326,1782330638000,-333.25327106,0.000402,120]
[426372325,1782330638000,-618.06656818,0.000402,120]
[426372331,1782330638000,-500.0,0.00040243,31]
[426372333,1782330638000,-500.0,0.00040243,31]
[426372328,1782330638000,-500.0,0.00040243,31]
[426372334,1782330638000,-500.0,0.00040243,31]
[426372338,1782330638000,-500.0,0.00040243,31]
[426372335,1782330638000,-500.0,0.00040243,31]
[426372341,1782330638000,-18708.94150239,0.00040244,2]
[426372337,1782330638000,-276.39572626,0.00040243,31]
[426372336,1782330638000,-500.0,0.00040243,31]
[426372340,1782330638000,-400.0,0.00040243,31]
[426372339,1782330638000,-500.0,0.00040243,31]
[426372332,1782330638000,-500.0,0.00040243,31]
[426372304,1782330638000,-500.0,0.00040199,31]
[426372329,1782330638000,-500.0,0.00040243,31]
[426372310,1782330638000,-500.0,0.00040199,31]
[426372309,1782330638000,-500.0,0.00040199,31]
[426372312,1782330638000,-500.0,0.00040199,31]
[426372311,1782330638000,-459.36811149,0.00040199,31]
[426372314,1782330638000,-500.0,0.00040199,31]
[426372315,1782330638000,-500.0,0.00040199,31]
[426372313,1782330638000,-500.0,0.00040199,31]
[426372330,1782330638000,-500.0,0.00040243,31]
[426372318,1782330638000,-500.0,0.00040199,31]
[426372317,1782330638000,-276.59447943,0.00040199,31]
[426372319,1782330638000,-500.0,0.00040199,31]
[426372320,1782330638000,-264.99672271,0.00040199,31]
[426372323,1782330638000,-500.0,0.00040199,31]
[426372322,1782330638000,-500.0,0.00040199,31]
[426372316,1782330638000,-500.0,0.00040199,31]
[426372346,1782330642000,500.0,0.00028766,60]
[426372365,1782330646000,-3433.67994334,0.00040244,2]
[426372368,1782330646000,-8683.92850507,0.00040244,2]
[426372367,1782330646000,-267.96388,0.00040244,2]
[426372370,1782330655000,152.74896461,0.00028766,60]
[426372371,1782330659000,500.0,0.00028766,60]
[426372372,1782330671000,500.0,0.00028766,60]
[426372373,1782330684000,500.0,0.00028766,60]
[426372374,1782330690000,500.0,0.00028766,60]
[426372375,1782330710000,500.0,0.00028766,60]
[426372376,1782330723000,500.0,0.00028766,60]
[426372377,1782330724000,500.0,0.00028766,60]
[426372379,1782330725000,304.06937522,0.00028766,60]
[426372378,1782330725000,500.0,0.00028766,60]
[426372380,1782330739000,500.0,0.00028766,60]
[426372381,1782330766000,500.0,0.00028766,60]
[426372382,1782330769000,500.0,0.00028766,60]
[426372383,1782330785000,500.0,0.00028766,60]
[426372386,1782330794000,2978.99276619,0.000191,2]
[426372387,1782330802000,500.0,0.00028766,60]
[426372388,1782330805000,500.0,0.00028766,60]
[426372389,1782330811000,500.0,0.00028766,60]
[426372390,1782330812000,500.0,0.00028766,60]
[426372391,1782330816000,500.0,0.00028766,60]
[426372392,1782330820000,500.0,0.00028766,60]
[426372393,1782330829000,500.0,0.00028767,60]
[426372394,1782330831000,500.0,0.00028767,60]
[426372396,1782330833000,500.0,0.00028767,60]
[426372395,1782330833000,500.0,0.00028767,60]
[426372397,1782330837000,500.0,0.00028767,60]
[426372398,1782330843000,510.90741016,0.00028767,60]
[426372400,1782330849000,500.0,0.00028767,60]
[426372401,1782330855000,500.0,0.00028767,60]
[426372403,1782330860000,500.0,0.00028767,60]
[426372402,1782330860000,500.0,0.00028767,60]
[426372404,1782330861000,275.52,0.00028767,60]
[426372405,1782330863000,660.0,0.00028767,30]
[426372406,1782330864000,500.0,0.00028767,60]
[426372407,1782330970000,5000.0,0.0003,30]
[426372408,1782331046000,7938.96987756,0.00013,2]
[426372410,1782331050000,7945.4413536,0.00017,2]
[426372409,1782331050000,2061.03012244,0.00017,2]
[426372411,1782331053000,500.0,0.00028767,60]
[426372412,1782331059000,156.0,0.0001,2]
[426372414,1782331062000,1056.90563718,0.00012,2]
[426372415,1782331105000,204.35404559,0.0003,120]
[426372417,1782331150000,500.0,0.00028779,60]
[426372420,1782331161000,500.0,0.00028779,60]
[426372419,1782331161000,500.0,0.00028779,60]
[426372418,1782331161000,500.0,0.00028779,60]
[426372421,1782331162000,500.0,0.00028779,60]
[426372422,1782331162000,500.0,0.00028779,60]
[426372423,1782331162000,500.0,0.00028779,60]
[426372426,1782331163000,500.0,0.00028779,60]
[426372424,1782331163000,500.0,0.00028779,60]
[426372425,1782331163000,500.0,0.00028779,60]
[426372429,1782331164000,500.0,0.00028779,60]
[426372428,1782331164000,500.0,0.00028779,60]
[426372427,1782331164000,500.0,0.00028779,60]
[426372432,1782331165000,500.0,0.00028779,60]
[426372431,1782331165000,500.0,0.00028779,60]
[426372430,1782331165000,500.0,0.00028779,60]
[426372435,1782331166000,500.0,0.00028779,60]
[426372434,1782331166000,500.0,0.00028779,60]
[426372433,1782331166000,500.0,0.00028779,60]
[426372436,1782331167000,500.0,0.00028779,60]
[426372437,1782331167000,500.0,0.00028779,60]
[426372438,1782331167000,500.0,0.00028779,60]
[426372439,1782331167000,500.0,0.00028779,60]
[426372441,1782331168000,500.0,0.00028779,60]
[426372440,1782331168000,500.0,0.00028779,60]
[426372442,1782331183000,500.0,0.00028779,60]
[426372443,1782331217000,500.0,0.00028779,60]
[426372445,1782331310000,-659.18939088,0.0001832,2]
[426372446,1782331327000,-1041.20129745,0.00018368,2]
[426372447,1782331330000,500.0,0.00028779,60]
[426372448,1782331344000,-659.18939088,0.00018368,2]
[426372449,1782331361000,-716.01329027,0.00018368,2]
[426372450,1782331374000,500.0,0.00028779,60]
[426372451,1782331375000,181.256568,0.00028202,120]
[426372452,1782331383000,500.0,0.00028779,60]
[426372453,1782331394000,500.0,0.00028779,60]
[426372454,1782331422000,204.35404558,0.0003,120]
[426372456,1782331459000,500.0,0.00028777,30]
[426372457,1782331487000,500.0,0.00028777,60]
[426372458,1782331530000,160.0,0.00028777,30]
[426372459,1782331539000,-157.89183105,0.00018466,2]
[426372460,1782331644000,-298.96869532,0.00018466,2]
[426372476,1782331708000,49999.96,0.0002,120]
[426372496,1782331747000,-500.0,0.00019998,2]
[426372492,1782331747000,-220.24342299,0.00019998,2]
[426372495,1782331747000,-500.0,0.00019998,2]
[426372490,1782331747000,-285.109449,0.00019432,2]
[426372489,1782331747000,-689.34311766,0.000192,2]
[426372491,1782331747000,-276.8655459,0.00019572,7]
[426372486,1782331747000,-3000.0,0.0001911,2]
[426372488,1782331747000,-4765.547071,0.0001913,2]
[426372483,1782331747000,-276.8655459,0.00019013,7]
[426372487,1782331747000,-3000.0,0.0001912,2]
[426372481,1782331747000,-277.4671013,0.0001864,2]
[426372484,1782331747000,-21.00723381,0.000191,2]
[426372494,1782331747000,-500.0,0.00019998,2]
[426372482,1782331747000,-276.8655459,0.0001864,7]
[426372480,1782331747000,-543.13947363,0.00018466,2]
[426372479,1782331747000,-1245.67883002,0.00018281,2]
[426372485,1782331747000,-175.22397643,0.000191,2]
[426372493,1782331747000,-296.56380657,0.00019998,2]
[426372499,1782331747000,-360.23933592,0.00019998,2]
[426372497,1782331747000,-252.95494216,0.00019998,2]
[426372515,1782331747000,-500.0,0.00019999,2]
[426372513,1782331747000,-500.0,0.00019999,2]
[426372514,1782331747000,-500.0,0.00019999,2]
[426372512,1782331747000,-500.0,0.00019999,2]
[426372511,1782331747000,-500.0,0.00019999,2]
[426372509,1782331747000,-500.0,0.00019999,2]
[426372507,1782331747000,-500.0,0.00019999,2]
[426372501,1782331747000,-500.0,0.00019999,2]
[426372506,1782331747000,-500.0,0.00019999,2]
[426372508,1782331747000,-500.0,0.00019999,2]
[426372502,1782331747000,-238.84273439,0.00019999,2]
[426372504,1782331747000,-500.0,0.00019999,2]
[426372503,1782331747000,-500.0,0.00019999,2]
[426372505,1782331747000,-500.0,0.00019999,2]
[426372500,1782331747000,-500.0,0.00019998,2]
[426372498,1782331747000,-542.50858465,0.00019998,2]
[426372510,1782331747000,-482.94684665,0.00019999,2]
[426372516,1782331748000,-500.0,0.00019999,2]
[426372518,1782331748000,-500.0,0.00019999,2]